[Event "Titled Tuesday Blitz May 10 Late 2022"]
[White "Melikyan, Gnel"]
[Black "Svane, Rasmus"]
[WhiteFideId "54109990"]
[BlackFideId "4657101"]
[WhiteElo "1772"]
[BlackElo "2674"]
[Result "0-1"]
[Round "08"]
[TimeControl "180+1"]
[Date "2022.05.10"]
[WhiteClock "0:00:03"]
[BlackClock "0:00:07"]

1. e4 {[%clk 0:03:00]}  c6 {[%clk 0:02:57]} 2. d4 {[%clk 0:02:58]}  d5 {[%clk 0:02:58]} 3. f3 {[%clk 0:02:58]}  e6 {[%clk 0:02:56]} 4. Nc3 {[%clk 0:02:58]}  Nd7 {[%clk 0:02:56]} 5. Bf4 {[%clk 0:02:58]}  Bb4 {[%clk 0:02:51]} 6. Qd3 {[%clk 0:02:58]}  Ne7 {[%clk 0:02:18]} 7. O-O-O {[%clk 0:02:46]}  O-O {[%clk 0:02:13]} 8. Nge2 {[%clk 0:02:44]}  b6 {[%clk 0:02:07]} 9. a3 {[%clk 0:02:42]}  Bxc3 {[%clk 0:01:54]} 10. Nxc3 {[%clk 0:02:41]}  a5 {[%clk 0:01:55]} 11. exd5 {[%clk 0:02:35]}  Ba6 {[%clk 0:01:53]} 12. Qe3 {[%clk 0:02:00]}  Bxf1 {[%clk 0:01:52]} 13. Rhxf1 {[%clk 0:01:57]}  Nxd5 {[%clk 0:01:53]} 14. Qd2 {[%clk 0:01:48]}  b5 {[%clk 0:01:48]} 15. Bd6 {[%clk 0:01:47]}  Re8 {[%clk 0:01:48]} 16. Ne4 {[%clk 0:01:47]}  N7b6 {[%clk 0:01:40]} 17. Bc5 {[%clk 0:01:44]}  b4 {[%clk 0:01:40]} 18. Qd3 {[%clk 0:01:36]}  bxa3 {[%clk 0:01:38]} 19. Bxa3 {[%clk 0:01:35]}  Nb4 {[%clk 0:01:35]} 20. Qb3 {[%clk 0:01:25]}  N6d5 {[%clk 0:01:36]} 21. Rfe1 {[%clk 0:01:15]}  Qc7 {[%clk 0:01:28]} 22. g3 {[%clk 0:00:56]}  Reb8 {[%clk 0:01:28]} 23. Qc4 {[%clk 0:00:53]}  h6 {[%clk 0:01:20]} 24. c3 {[%clk 0:00:47]}  Nb6 {[%clk 0:01:05]} 25. Qc5 {[%clk 0:00:40]}  Na4 {[%clk 0:00:53]} 26. Qe5 {[%clk 0:00:34]}  Qb7 {[%clk 0:00:50]} 27. Kd2 {[%clk 0:00:17]}  Nd5 {[%clk 0:00:47]} 28. Rb1 {[%clk 0:00:15]}  Qb3 {[%clk 0:00:45]} 29. Rec1 {[%clk 0:00:12]}  Nab6 {[%clk 0:00:39]} 30. Nd6 {[%clk 0:00:09]}  Rd8 {[%clk 0:00:22]} 31. Ke1 {[%clk 0:00:05]}  Nc4 {[%clk 0:00:22]} 32. Nxc4 {[%clk 0:00:05]}  Qxc4 {[%clk 0:00:23]} 33. Qe2 {[%clk 0:00:06]}  Qb3 {[%clk 0:00:23]} 34. Qc2 {[%clk 0:00:07]}  Qb7 {[%clk 0:00:23]} 35. Qa4 {[%clk 0:00:06]}  Qb6 {[%clk 0:00:20]} 36. Bc5 {[%clk 0:00:06]}  Qc7 {[%clk 0:00:20]} 37. Kf2 {[%clk 0:00:07]}  e5 {[%clk 0:00:20]} 38. dxe5 {[%clk 0:00:06]}  Qxe5 {[%clk 0:00:21]} 39. Re1 {[%clk 0:00:07]}  Qg5 {[%clk 0:00:17]} 40. Rbd1 {[%clk 0:00:06]}  Rab8 {[%clk 0:00:17]} 41. Re2 {[%clk 0:00:04]}  Re8 {[%clk 0:00:17]} 42. Rde1 {[%clk 0:00:04]}  Rxe2+ {[%clk 0:00:16]} 43. Rxe2 {[%clk 0:00:05]}  Qg6 {[%clk 0:00:17]} 44. Qd4 {[%clk 0:00:05]}  Qb1 {[%clk 0:00:14]} 45. c4 {[%clk 0:00:06]}  Nf6 {[%clk 0:00:14]} 46. Bd6 {[%clk 0:00:05]}  Rc8 {[%clk 0:00:12]} 47. Be5 {[%clk 0:00:05]}  Ne8 {[%clk 0:00:10]} 48. c5 {[%clk 0:00:05]}  Qh1 {[%clk 0:00:10]} 49. g4 {[%clk 0:00:04]}  Ra8 {[%clk 0:00:07]} 50. Qc3 {[%clk 0:00:04]}  Qd1 {[%clk 0:00:06]} 51. Re1 {[%clk 0:00:04]}  Qd5 {[%clk 0:00:06]} 52. Bf4 {[%clk 0:00:04]}  Nf6 {[%clk 0:00:06]} 53. Kg3 {[%clk 0:00:04]}  Re8 {[%clk 0:00:05]} 54. Rxe8+ {[%clk 0:00:04]}  Nxe8 {[%clk 0:00:06]} 55. Qe5 {[%clk 0:00:04]}  Qd7 {[%clk 0:00:06]} 56. Qb8 {[%clk 0:00:04]}  Kh7 {[%clk 0:00:06]} 57. Qa8 {[%clk 0:00:04]}  Nf6 {[%clk 0:00:05]} 58. Qxa5 {[%clk 0:00:04]}  Qd3 {[%clk 0:00:06]} 59. Qc3 {[%clk 0:00:04]}  Ne4+ {[%clk 0:00:06]} 60. Kg2 {[%clk 0:00:03]}  Nxc3 {[%clk 0:00:07]} 0-1


[Site "https://www.chess.com"]

[Event "Titled Tuesday Blitz May 10 Late 2022"]
[White "Miszler, Levente"]
[Black "Petrovic, Aleksa"]
[WhiteFideId "763276"]
[BlackFideId "967629"]
[WhiteElo "1966"]
[BlackElo "2144"]
[Result "1-0"]
[Round "08"]
[TimeControl "180+1"]
[Date "2022.05.11"]
[WhiteClock "0:00:08"]
[BlackClock "0:00:02"]

1. Nf3 {[%clk 0:03:00]}  Nf6 {[%clk 0:02:59]} 2. c4 {[%clk 0:03:00]}  e6 {[%clk 0:02:57]} 3. g3 {[%clk 0:03:00]}  b6 {[%clk 0:02:55]} 4. Bg2 {[%clk 0:03:00]}  Bb7 {[%clk 0:02:55]} 5. O-O {[%clk 0:03:00]}  c5 {[%clk 0:02:55]} 6. Nc3 {[%clk 0:02:55]}  a6 {[%clk 0:02:55]} 7. a3 {[%clk 0:02:55]}  Be7 {[%clk 0:02:55]} 8. Rb1 {[%clk 0:02:55]}  O-O {[%clk 0:02:53]} 9. b4 {[%clk 0:02:56]}  cxb4 {[%clk 0:02:45]} 10. axb4 {[%clk 0:02:57]}  Qc7 {[%clk 0:02:41]} 11. d3 {[%clk 0:02:55]}  d5 {[%clk 0:02:33]} 12. Bf4 {[%clk 0:02:53]}  Bd6 {[%clk 0:02:29]} 13. Bxd6 {[%clk 0:02:51]}  Qxd6 {[%clk 0:02:30]} 14. c5 {[%clk 0:02:51]}  Qc7 {[%clk 0:02:19]} 15. Na4 {[%clk 0:02:47]}  b5 {[%clk 0:02:13]} 16. Nb6 {[%clk 0:02:46]}  Ra7 {[%clk 0:02:13]} 17. Ra1 {[%clk 0:02:35]}  Nc6 {[%clk 0:01:49]} 18. Qb3 {[%clk 0:02:26]}  h6 {[%clk 0:01:42]} 19. Rfc1 {[%clk 0:02:25]}  Rd8 {[%clk 0:01:37]} 20. Qb2 {[%clk 0:02:23]}  e5 {[%clk 0:01:31]} 21. Nd2 {[%clk 0:02:17]}  Nd4 {[%clk 0:01:27]} 22. Nb3 {[%clk 0:02:11]}  Nf5 {[%clk 0:01:07]} 23. Na5 {[%clk 0:02:01]}  e4 {[%clk 0:01:03]} 24. dxe4 {[%clk 0:01:51]}  dxe4 {[%clk 0:01:01]} 25. Rd1 {[%clk 0:01:45]}  Rxd1+ {[%clk 0:00:48]} 26. Rxd1 {[%clk 0:01:46]}  Bc6 {[%clk 0:00:48]} 27. Nxc6 {[%clk 0:01:38]}  Qxc6 {[%clk 0:00:47]} 28. Qe5 {[%clk 0:01:38]}  g6 {[%clk 0:00:36]} 29. Rd8+ {[%clk 0:01:23]}  Kg7 {[%clk 0:00:27]} 30. Rc8 {[%clk 0:01:17]}  Qb7 {[%clk 0:00:11]} 31. Bh3 {[%clk 0:00:49]}  a5 {[%clk 0:00:10]} 32. Bxf5 {[%clk 0:00:48]}  gxf5 {[%clk 0:00:09]} 33. Rb8 {[%clk 0:00:23]}  Qc6 {[%clk 0:00:07]} 34. Rc8 {[%clk 0:00:23]}  Qe6 {[%clk 0:00:03]} 35. Qb8 {[%clk 0:00:20]}  Re7 {[%clk 0:00:02]} 36. Rh8 {[%clk 0:00:12]}  Re8 {[%clk 0:00:02]} 37. Rxe8 {[%clk 0:00:11]}  Nxe8 {[%clk 0:00:01]} 38. bxa5 {[%clk 0:00:10]}  e3 {[%clk 0:00:02]} 39. f3 {[%clk 0:00:10]}  f6 {[%clk 0:00:02]} 40. Qb7+ {[%clk 0:00:08]}  Kg6 {[%clk 0:00:01]} 41. Qd7 {[%clk 0:00:08]}  Qb3 {[%clk 0:00:01]} 42. Qxe8+ {[%clk 0:00:07]}  Kg5 {[%clk 0:00:01]} 43. Kg2 {[%clk 0:00:08]}  Qc2 {[%clk 0:00:01]} 44. Qxe3+ {[%clk 0:00:08]}  Kg6 {[%clk 0:00:01]} 45. h4 {[%clk 0:00:08]}  Qd1 {[%clk 0:00:01]} 46. a6 {[%clk 0:00:08]}  b4 {[%clk 0:00:01]} 47. a7 {[%clk 0:00:08]}  Qa1 {[%clk 0:00:02]} 48. a8=Q {[%clk 0:00:08]} 1-0


[Site "https://www.chess.com"]

[Event "Titled Tuesday Blitz May 10 Late 2022"]
[White "Papasimakopoulos, Alexandros"]
[Black "Gurevich, Dmitry"]
[WhiteFideId "4244125"]
[BlackFideId "2000407"]
[WhiteElo "2340"]
[BlackElo "2506"]
[Result "1/2-1/2"]
[Round "08"]
[TimeControl "180+1"]
[Date "2022.05.10"]
[WhiteClock "0:01:56"]
[BlackClock "0:00:23"]

1. d4 {[%clk 0:03:00]}  Nf6 {[%clk 0:02:59]} 2. c4 {[%clk 0:03:01]}  a6 {[%clk 0:02:59]} 3. Nc3 {[%clk 0:02:58]}  c5 {[%clk 0:02:59]} 4. dxc5 {[%clk 0:02:58]}  e6 {[%clk 0:02:56]} 5. b4 {[%clk 0:02:58]}  a5 {[%clk 0:02:54]} 6. b5 {[%clk 0:02:56]}  Bxc5 {[%clk 0:02:53]} 7. Nf3 {[%clk 0:02:56]}  O-O {[%clk 0:02:44]} 8. e3 {[%clk 0:02:56]}  d5 {[%clk 0:02:42]} 9. cxd5 {[%clk 0:02:55]}  Bb4 {[%clk 0:02:32]} 10. Bd2 {[%clk 0:02:55]}  Nxd5 {[%clk 0:02:30]} 11. Nxd5 {[%clk 0:02:55]}  Qxd5 {[%clk 0:02:28]} 12. Bxb4 {[%clk 0:02:55]}  Qxd1+ {[%clk 0:02:26]} 13. Rxd1 {[%clk 0:02:53]}  axb4 {[%clk 0:02:26]} 14. Bc4 {[%clk 0:02:54]}  Nd7 {[%clk 0:02:20]} 15. Ke2 {[%clk 0:02:54]}  Nb6 {[%clk 0:02:10]} 16. Bb3 {[%clk 0:02:54]}  Na4 {[%clk 0:02:10]} 17. Rd4 {[%clk 0:02:52]}  Nc3+ {[%clk 0:02:09]} 18. Kd3 {[%clk 0:02:48]}  Nxb5 {[%clk 0:02:06]} 19. Rxb4 {[%clk 0:02:48]}  Rd8+ {[%clk 0:02:06]} 20. Ke4 {[%clk 0:02:44]}  Bd7 {[%clk 0:02:02]} 21. Ne5 {[%clk 0:02:42]}  Be8 {[%clk 0:02:02]} 22. Rc1 {[%clk 0:02:39]}  Kf8 {[%clk 0:02:00]} 23. g4 {[%clk 0:02:34]}  f6 {[%clk 0:01:54]} 24. Nc4 {[%clk 0:02:33]}  Bc6+ {[%clk 0:01:52]} 25. Kf4 {[%clk 0:02:33]}  e5+ {[%clk 0:01:45]} 26. Kg3 {[%clk 0:02:33]}  Nd6 {[%clk 0:01:40]} 27. Nxd6 {[%clk 0:02:30]}  Rxd6 {[%clk 0:01:40]} 28. h4 {[%clk 0:02:29]}  Ke7 {[%clk 0:01:36]} 29. g5 {[%clk 0:02:30]}  Rf8 {[%clk 0:01:28]} 30. Ba4 {[%clk 0:02:20]}  fxg5 {[%clk 0:01:23]} 31. Bxc6 {[%clk 0:02:21]}  gxh4+ {[%clk 0:01:22]} 32. Rxh4 {[%clk 0:02:21]}  Rg6+ {[%clk 0:01:17]} 33. Rg4 {[%clk 0:02:18]}  Rxg4+ {[%clk 0:01:16]} 34. Kxg4 {[%clk 0:02:19]}  bxc6 {[%clk 0:01:10]} 35. f3 {[%clk 0:02:17]}  Kd6 {[%clk 0:01:04]} 36. Rd1+ {[%clk 0:02:18]}  Kc7 {[%clk 0:01:04]} 37. Rc1 {[%clk 0:02:18]}  Ra8 {[%clk 0:01:03]} 38. Rc2 {[%clk 0:02:18]}  Ra3 {[%clk 0:01:03]} 39. Re2 {[%clk 0:02:18]}  Kd6 {[%clk 0:00:58]} 40. Kf5 {[%clk 0:02:18]}  Rd3 {[%clk 0:00:58]} 41. a4 {[%clk 0:02:17]}  Ra3 {[%clk 0:00:56]} 42. Rd2+ {[%clk 0:02:17]}  Ke7 {[%clk 0:00:56]} 43. Re2 {[%clk 0:02:12]}  Rxa4 {[%clk 0:00:54]} 44. Kxe5 {[%clk 0:02:12]}  Ra5+ {[%clk 0:00:54]} 45. Kd4 {[%clk 0:02:11]}  Kd6 {[%clk 0:00:55]} 46. Ke4 {[%clk 0:02:10]}  g6 {[%clk 0:00:54]} 47. Rd2+ {[%clk 0:02:10]}  Ke6 {[%clk 0:00:53]} 48. Kf4 {[%clk 0:02:11]}  h5 {[%clk 0:00:51]} 49. Rc2 {[%clk 0:02:04]}  g5+ {[%clk 0:00:50]} 50. Kg3 {[%clk 0:02:04]}  c5 {[%clk 0:00:46]} 51. f4 {[%clk 0:02:04]}  gxf4+ {[%clk 0:00:45]} 52. exf4 {[%clk 0:02:05]}  Kf5 {[%clk 0:00:42]} 53. Rc4 {[%clk 0:02:05]}  Rb5 {[%clk 0:00:41]} 54. Kh4 {[%clk 0:02:04]}  Kg6 {[%clk 0:00:28]} 55. Rc1 {[%clk 0:01:56]}  Kf5 {[%clk 0:00:26]} 56. Rc4 {[%clk 0:01:55]}  Kg6 {[%clk 0:00:23]} 57. Rc1 {[%clk 0:01:55]}  Kf5 {[%clk 0:00:23]} 58. Rc4 {[%clk 0:01:56]} 1/2-1/2


[Site "https://www.chess.com"]

[Event "Titled Tuesday Blitz May 10 Late 2022"]
[White "Peralta, Eduardo"]
[Black "Dimakiling, Oliver"]
[WhiteFideId "3700062"]
[BlackFideId "5202248"]
[WhiteElo "2125"]
[BlackElo "2426"]
[Result "1-0"]
[Round "08"]
[TimeControl "180+1"]
[Date "2022.05.10"]
[WhiteClock "0:01:35"]
[BlackClock "0:01:39"]

1. Nf3 {[%clk 0:03:00]}  Nf6 {[%clk 0:02:59]} 2. g3 {[%clk 0:03:00]}  g6 {[%clk 0:02:58]} 3. Bg2 {[%clk 0:03:00]}  Bg7 {[%clk 0:02:59]} 4. O-O {[%clk 0:03:00]}  O-O {[%clk 0:03:00]} 5. c4 {[%clk 0:03:00]}  c5 {[%clk 0:02:59]} 6. Nc3 {[%clk 0:02:59]}  Nc6 {[%clk 0:02:59]} 7. d3 {[%clk 0:02:58]}  e5 {[%clk 0:02:59]} 8. Bg5 {[%clk 0:02:55]}  h6 {[%clk 0:02:59]} 9. Bxf6 {[%clk 0:02:55]}  Bxf6 {[%clk 0:02:59]} 10. a3 {[%clk 0:02:55]}  d6 {[%clk 0:02:58]} 11. Rb1 {[%clk 0:02:54]}  a5 {[%clk 0:02:56]} 12. Nd2 {[%clk 0:02:54]}  Be6 {[%clk 0:02:52]} 13. Nd5 {[%clk 0:02:53]}  Bg7 {[%clk 0:02:51]} 14. e3 {[%clk 0:02:45]}  h5 {[%clk 0:02:47]} 15. h4 {[%clk 0:02:40]}  Ne7 {[%clk 0:02:40]} 16. b4 {[%clk 0:02:38]}  axb4 {[%clk 0:02:40]} 17. axb4 {[%clk 0:02:37]}  Bxd5 {[%clk 0:02:38]} 18. cxd5 {[%clk 0:02:36]}  b6 {[%clk 0:02:38]} 19. bxc5 {[%clk 0:02:35]}  bxc5 {[%clk 0:02:37]} 20. Nc4 {[%clk 0:02:35]}  Nf5 {[%clk 0:02:32]} 21. Rb7 {[%clk 0:02:29]}  Bf6 {[%clk 0:02:17]} 22. Bh3 {[%clk 0:02:20]}  Bxh4 {[%clk 0:02:01]} 23. Bxf5 {[%clk 0:02:17]}  gxf5 {[%clk 0:02:01]} 24. Qxh5 {[%clk 0:02:15]}  Bg5 {[%clk 0:01:59]} 25. Kg2 {[%clk 0:02:10]}  Qf6 {[%clk 0:01:54]} 26. Rh1 {[%clk 0:01:58]}  Rfd8 {[%clk 0:01:49]} 27. f4 {[%clk 0:01:42]}  Ra2+ {[%clk 0:01:47]} 28. Kf3 {[%clk 0:01:41]}  e4+ {[%clk 0:01:46]} 29. dxe4 {[%clk 0:01:40]}  fxe4+ {[%clk 0:01:46]} 30. Kxe4 {[%clk 0:01:39]}  Re8+ {[%clk 0:01:39]} 31. Kf3 {[%clk 0:01:35]} 1-0


[Site "https://www.chess.com"]

[Event "Titled Tuesday Blitz May 10 Late 2022"]
[White "Petrovskyi, Vadym"]
[Black "Bortnyk, Olexandr"]
[WhiteFideId "14165210"]
[BlackFideId "14120828"]
[WhiteElo "2400"]
[BlackElo "2723"]
[Result "0-1"]
[Round "08"]
[TimeControl "180+1"]
[Date "2022.05.10"]
[WhiteClock "0:00:08"]
[BlackClock "0:00:09"]

1. e4 {[%clk 0:03:00]}  d6 {[%clk 0:03:00]} 2. d4 {[%clk 0:03:00]}  Nf6 {[%clk 0:03:01]} 3. Nc3 {[%clk 0:03:00]}  Nbd7 {[%clk 0:03:01]} 4. Nf3 {[%clk 0:03:00]}  e5 {[%clk 0:03:01]} 5. Bc4 {[%clk 0:02:58]}  Be7 {[%clk 0:03:02]} 6. O-O {[%clk 0:02:58]}  c6 {[%clk 0:03:02]} 7. a4 {[%clk 0:02:58]}  h6 {[%clk 0:03:03]} 8. dxe5 {[%clk 0:02:58]}  dxe5 {[%clk 0:03:03]} 9. Qe2 {[%clk 0:02:58]}  Qc7 {[%clk 0:03:03]} 10. Nh4 {[%clk 0:02:57]}  Nc5 {[%clk 0:03:02]} 11. Nf5 {[%clk 0:02:56]}  Bxf5 {[%clk 0:03:01]} 12. exf5 {[%clk 0:02:57]}  a5 {[%clk 0:02:57]} 13. f4 {[%clk 0:02:54]}  e4 {[%clk 0:02:56]} 14. Be3 {[%clk 0:02:46]}  O-O {[%clk 0:02:52]} 15. g4 {[%clk 0:02:45]}  Rad8 {[%clk 0:02:48]} 16. Rad1 {[%clk 0:02:06]}  Rxd1 {[%clk 0:02:40]} 17. Rxd1 {[%clk 0:02:07]}  Rd8 {[%clk 0:02:38]} 18. g5 {[%clk 0:01:42]}  Rxd1+ {[%clk 0:02:25]} 19. Qxd1 {[%clk 0:01:41]}  hxg5 {[%clk 0:02:25]} 20. fxg5 {[%clk 0:01:42]}  Nfd7 {[%clk 0:02:25]} 21. g6 {[%clk 0:01:29]}  Ne5 {[%clk 0:02:25]} 22. gxf7+ {[%clk 0:01:26]}  Kf8 {[%clk 0:02:22]} 23. Ba2 {[%clk 0:01:17]}  Nf3+ {[%clk 0:02:21]} 24. Kf1 {[%clk 0:01:08]}  Qxh2 {[%clk 0:00:48]} 25. f6 {[%clk 0:00:59]}  gxf6 {[%clk 0:00:15]} 26. Bxc5 {[%clk 0:00:55]}  Nd2+ {[%clk 0:00:15]} 27. Ke1 {[%clk 0:00:51]}  Nf3+ {[%clk 0:00:15]} 28. Kf1 {[%clk 0:00:52]}  Qh1+ {[%clk 0:00:13]} 29. Ke2 {[%clk 0:00:50]}  Qg2+ {[%clk 0:00:13]} 30. Bf2 {[%clk 0:00:44]}  e3 {[%clk 0:00:14]} 31. Ne4 {[%clk 0:00:36]}  exf2 {[%clk 0:00:07]} 32. Nxf2 {[%clk 0:00:37]}  Ng1+ {[%clk 0:00:03]} 33. Ke1 {[%clk 0:00:33]}  Nf3+ {[%clk 0:00:04]} 34. Ke2 {[%clk 0:00:34]}  Ne5 {[%clk 0:00:04]} 35. Qd2 {[%clk 0:00:30]}  Qf3+ {[%clk 0:00:02]} 36. Ke1 {[%clk 0:00:26]}  Nxf7 {[%clk 0:00:03]} 37. Qxa5 {[%clk 0:00:23]}  Qe3+ {[%clk 0:00:02]} 38. Kf1 {[%clk 0:00:22]}  Bc5 {[%clk 0:00:03]} 39. Nd3 {[%clk 0:00:17]}  Qf3+ {[%clk 0:00:02]} 40. Ke1 {[%clk 0:00:16]}  Qg3+ {[%clk 0:00:03]} 41. Kd2 {[%clk 0:00:15]}  Qg5+ {[%clk 0:00:03]} 42. Kd1 {[%clk 0:00:14]}  Qh5+ {[%clk 0:00:03]} 43. Ke1 {[%clk 0:00:12]}  Bf2+ {[%clk 0:00:04]} 44. Kxf2 {[%clk 0:00:02]}  Qxa5 {[%clk 0:00:04]} 45. Ke2 {[%clk 0:00:03]}  Qxa4 {[%clk 0:00:05]} 46. Bb3 {[%clk 0:00:03]}  Qe4+ {[%clk 0:00:05]} 47. Kd2 {[%clk 0:00:04]}  Ne5 {[%clk 0:00:06]} 48. Nc5 {[%clk 0:00:04]}  Qd4+ {[%clk 0:00:06]} 49. Nd3 {[%clk 0:00:04]}  Nxd3 {[%clk 0:00:06]} 50. cxd3 {[%clk 0:00:05]}  Qxb2+ {[%clk 0:00:07]} 51. Bc2 {[%clk 0:00:06]}  f5 {[%clk 0:00:07]} 52. d4 {[%clk 0:00:06]}  Qxd4+ {[%clk 0:00:07]} 53. Ke2 {[%clk 0:00:07]}  f4 {[%clk 0:00:08]} 54. Kf3 {[%clk 0:00:07]}  Qe3+ {[%clk 0:00:09]} 55. Kg4 {[%clk 0:00:08]}  f3 {[%clk 0:00:09]} 0-1


[Site "https://www.chess.com"]

[Event "Titled Tuesday Blitz May 10 Late 2022"]
[White "Postny, Evgeny"]
[Black "Diaz, Fernando"]
[WhiteFideId "2804344"]
[BlackFideId "3701255"]
[WhiteElo "2500"]
[BlackElo "1934"]
[Result "1-0"]
[Round "08"]
[TimeControl "180+1"]
[Date "2022.05.11"]
[WhiteClock "0:00:01"]
[BlackClock "0:00:12"]

1. e4 {[%clk 0:03:00]}  e6 {[%clk 0:02:59]} 2. d4 {[%clk 0:03:00]}  d5 {[%clk 0:03:00]} 3. Nd2 {[%clk 0:03:00]}  Nf6 {[%clk 0:02:59]} 4. e5 {[%clk 0:02:59]}  Nfd7 {[%clk 0:03:00]} 5. c3 {[%clk 0:03:00]}  c5 {[%clk 0:03:00]} 6. f4 {[%clk 0:03:00]}  Nc6 {[%clk 0:03:00]} 7. Ndf3 {[%clk 0:03:00]}  cxd4 {[%clk 0:02:59]} 8. cxd4 {[%clk 0:03:00]}  Qa5+ {[%clk 0:02:57]} 9. Kf2 {[%clk 0:02:55]}  f6 {[%clk 0:02:57]} 10. h4 {[%clk 0:02:51]}  Be7 {[%clk 0:02:46]} 11. Nh3 {[%clk 0:02:46]}  b6 {[%clk 0:02:44]} 12. a3 {[%clk 0:02:37]}  b5 {[%clk 0:02:41]} 13. Bd3 {[%clk 0:02:20]}  Qb6 {[%clk 0:02:20]} 14. Be3 {[%clk 0:02:19]}  b4 {[%clk 0:02:17]} 15. Qe2 {[%clk 0:02:18]}  a5 {[%clk 0:02:15]} 16. exf6 {[%clk 0:02:06]}  gxf6 {[%clk 0:02:13]} 17. f5 {[%clk 0:02:05]}  e5 {[%clk 0:02:11]} 18. dxe5 {[%clk 0:02:04]}  Bc5 {[%clk 0:01:59]} 19. exf6 {[%clk 0:01:33]}  O-O {[%clk 0:01:44]} 20. Rhc1 {[%clk 0:01:18]}  Bxe3+ {[%clk 0:01:29]} 21. Qxe3 {[%clk 0:01:18]}  Qxe3+ {[%clk 0:00:57]} 22. Kxe3 {[%clk 0:01:19]}  Nde5 {[%clk 0:00:55]} 23. Nxe5 {[%clk 0:01:14]}  Nxe5 {[%clk 0:00:56]} 24. axb4 {[%clk 0:00:53]}  Nxd3 {[%clk 0:00:47]} 25. Kxd3 {[%clk 0:00:54]}  Bxf5+ {[%clk 0:00:47]} 26. Kd4 {[%clk 0:00:54]}  Be4 {[%clk 0:00:44]} 27. bxa5 {[%clk 0:00:45]}  Rxf6 {[%clk 0:00:40]} 28. b4 {[%clk 0:00:35]}  Rb8 {[%clk 0:00:34]} 29. a6 {[%clk 0:00:29]}  Rxb4+ {[%clk 0:00:32]} 30. Ke5 {[%clk 0:00:30]}  Rf5+ {[%clk 0:00:28]} 31. Kd6 {[%clk 0:00:28]}  d4 {[%clk 0:00:26]} 32. Rc8+ {[%clk 0:00:21]}  Kf7 {[%clk 0:00:24]} 33. Rc7+ {[%clk 0:00:08]}  Kg6 {[%clk 0:00:22]} 34. a7 {[%clk 0:00:06]}  Rb6+ {[%clk 0:00:20]} 35. Ke7 {[%clk 0:00:04]}  Rf7+ {[%clk 0:00:18]} 36. Ke8 {[%clk 0:00:04]}  Rxc7 {[%clk 0:00:17]} 37. Nf4+ {[%clk 0:00:02]}  Kf5 {[%clk 0:00:16]} 38. Nd3 {[%clk 0:00:02]}  Bxd3 {[%clk 0:00:15]} 39. a8=Q {[%clk 0:00:02]}  Bb5+ {[%clk 0:00:13]} 40. Kd8 {[%clk 0:00:01]}  Rd7+ {[%clk 0:00:12]} 41. Kc8 {[%clk 0:00:01]} 1-0


[Site "https://www.chess.com"]

[Event "Titled Tuesday Blitz May 10 Late 2022"]
[White "RestartingChess"]
[Black "Lashkin, Jegor"]
[BlackFideId "13907808"]
[WhiteElo "2515"]
[BlackElo "2368"]
[Result "0-1"]
[Round "08"]
[TimeControl "180+1"]
[Date "2022.05.10"]
[WhiteClock "0:00:31"]
[BlackClock "0:00:34"]

1. e4 {[%clk 0:03:00]}  c5 {[%clk 0:02:59]} 2. Nf3 {[%clk 0:03:00]}  d6 {[%clk 0:03:00]} 3. Bb5+ {[%clk 0:03:00]}  Nd7 {[%clk 0:03:00]} 4. c4 {[%clk 0:03:00]}  Nf6 {[%clk 0:03:00]} 5. Nc3 {[%clk 0:03:01]}  a6 {[%clk 0:02:59]} 6. Bxd7+ {[%clk 0:03:01]}  Bxd7 {[%clk 0:02:59]} 7. d3 {[%clk 0:03:02]}  g6 {[%clk 0:02:59]} 8. h3 {[%clk 0:03:03]}  Bg7 {[%clk 0:02:59]} 9. O-O {[%clk 0:03:03]}  O-O {[%clk 0:03:00]} 10. Be3 {[%clk 0:03:04]}  b5 {[%clk 0:03:00]} 11. b3 {[%clk 0:03:02]}  Bc6 {[%clk 0:02:57]} 12. Rc1 {[%clk 0:03:01]}  e6 {[%clk 0:02:57]} 13. Bg5 {[%clk 0:02:59]}  h6 {[%clk 0:02:56]} 14. Bh4 {[%clk 0:02:59]}  Qb6 {[%clk 0:02:53]} 15. Qd2 {[%clk 0:02:56]}  b4 {[%clk 0:02:49]} 16. Ne2 {[%clk 0:02:51]}  Nd7 {[%clk 0:02:43]} 17. Be7 {[%clk 0:02:50]}  Rfe8 {[%clk 0:02:43]} 18. Bxd6 {[%clk 0:02:50]}  e5 {[%clk 0:02:44]} 19. d4 {[%clk 0:02:38]}  exd4 {[%clk 0:02:44]} 20. Ng3 {[%clk 0:02:29]}  Bb7 {[%clk 0:02:32]} 21. Bf4 {[%clk 0:02:27]}  g5 {[%clk 0:02:31]} 22. Bxg5 {[%clk 0:02:23]}  hxg5 {[%clk 0:02:32]} 23. Qxg5 {[%clk 0:02:24]}  Qg6 {[%clk 0:02:29]} 24. Qf4 {[%clk 0:02:11]}  Bh6 {[%clk 0:02:28]} 25. Qc7 {[%clk 0:02:08]}  Qc6 {[%clk 0:02:15]} 26. Qxc6 {[%clk 0:02:03]}  Bxc6 {[%clk 0:02:16]} 27. Rce1 {[%clk 0:02:04]}  Bf4 {[%clk 0:02:09]} 28. Nh5 {[%clk 0:01:55]}  Bh6 {[%clk 0:02:07]} 29. Ng3 {[%clk 0:01:55]}  Nf6 {[%clk 0:01:40]} 30. Nf5 {[%clk 0:01:35]}  Kh7 {[%clk 0:01:40]} 31. Nd6 {[%clk 0:01:25]}  Re7 {[%clk 0:01:34]} 32. Nh4 {[%clk 0:01:25]}  Nxe4 {[%clk 0:01:10]} 33. f3 {[%clk 0:00:58]}  Nxd6 {[%clk 0:01:10]} 34. Rxe7 {[%clk 0:00:58]}  Bg5 {[%clk 0:01:10]} 35. Rc7 {[%clk 0:00:57]}  Be8 {[%clk 0:00:59]} 36. g3 {[%clk 0:00:57]}  d3 {[%clk 0:00:57]} 37. Ng2 {[%clk 0:00:55]}  Bd8 {[%clk 0:00:56]} 38. Rxc5 {[%clk 0:00:36]}  Bb6 {[%clk 0:00:56]} 39. Rd1 {[%clk 0:00:37]}  Bxc5+ {[%clk 0:00:57]} 40. Kh2 {[%clk 0:00:38]}  Bc6 {[%clk 0:00:47]} 41. Rxd3 {[%clk 0:00:38]}  Rd8 {[%clk 0:00:44]} 42. Nf4 {[%clk 0:00:34]}  Nb7 {[%clk 0:00:44]} 43. Rxd8 {[%clk 0:00:35]}  Nxd8 {[%clk 0:00:44]} 44. Nd3 {[%clk 0:00:36]}  Be7 {[%clk 0:00:43]} 45. f4 {[%clk 0:00:34]}  Be4 {[%clk 0:00:43]} 46. Ne5 {[%clk 0:00:34]}  Bb1 {[%clk 0:00:38]} 47. Nf3 {[%clk 0:00:33]}  Bxa2 {[%clk 0:00:38]} 48. Nd2 {[%clk 0:00:34]}  Nc6 {[%clk 0:00:34]} 49. Kg2 {[%clk 0:00:34]}  Nd4 {[%clk 0:00:34]} 50. Kf2 {[%clk 0:00:34]}  Nxb3 {[%clk 0:00:35]} 51. Ne4 {[%clk 0:00:34]}  Nc5 {[%clk 0:00:34]} 52. Nd2 {[%clk 0:00:33]}  b3 {[%clk 0:00:35]} 53. Ke3 {[%clk 0:00:32]}  b2 {[%clk 0:00:35]} 54. Kd4 {[%clk 0:00:32]}  Nb3+ {[%clk 0:00:34]} 55. Kc3 {[%clk 0:00:30]}  Bf6+ {[%clk 0:00:34]} 56. Kc2 {[%clk 0:00:30]}  Nxd2 {[%clk 0:00:34]} 57. Kxd2 {[%clk 0:00:31]}  b1=Q {[%clk 0:00:34]} 0-1


[Site "https://www.chess.com"]